bitfinex-derivatives/quotes_SOLF0:USTF0_20250924
["timestamp","ask_amount","ask_price","bid_price","bid_amount"]
[1758723484564,4.2281,212.78,212.72,7.65]
[1758723484769,4.23,212.76,212.7,85.18]
[1758723485172,2.17622433,212.77,212.71,7.65]
[1758723485369,6.40622433,212.77,212.71,7.65]
[1758723485763,6.40622433,212.77,212.68,2.17622433]
[1758723485974,6.40622433,212.77,212.67,7.65]
[1758723485975,2.17622433,212.73,212.67,7.65]
[1758723486669,4.2291,212.72,212.67,7.65]
[1758723486875,4.23,212.74,212.67,7.65]
[1758723488178,4.229,212.73,212.67,7.65]
[1758723488473,4.23,212.74,212.67,7.65]
[1758723488977,6.40512433,212.73,212.67,7.65]
[1758723489875,2.17622433,212.74,212.66,7.65]
[1758723490078,4.23,212.75,212.66,7.65]
[1758723490270,2.17622433,212.74,212.66,7.65]
[1758723490570,4.23,212.75,212.66,7.65]
[1758723490767,2.17622433,212.74,212.66,7.65]
[1758723491564,2.17622433,212.74,212.66,9.82622433]
[1758723492071,2.17622433,212.74,212.66,7.65]
[1758723492569,65.778,212.75,212.66,7.65]
[1758723492876,4.23,212.69,212.65,124.43]
[1758723493073,4.23,212.69,212.6,2.17622433]
[1758723493074,2.17622433,212.68,212.6,7.65]
[1758723493378,6.40652433,212.66,212.6,7.65]
[1758723493571,6.40622433,212.64,212.59,116.82]
[1758723493769,4.23,212.63,212.59,116.82]
[1758723493966,2.17622433,212.64,212.59,116.82]
[1758723494171,2.17622433,212.64,212.59,124.47]
[1758723494367,6.40622433,212.64,212.59,124.47]
[1758723494870,10.63692433,212.64,212.59,124.47]
[1758723495079,6.40622433,212.64,212.59,124.47]
[1758723496081,2.17622433,212.62,212.55,7.65]
[1758723496669,4.23,212.65,212.51,7.65]
[1758723496670,4.23,212.58,212.51,7.65]
[1758723496977,6.40622433,212.56,212.47,116.84]
[1758723497178,4.2327,212.55,212.47,116.84]
[1758723498282,4.2331,212.53,212.47,116.84]
[1758723498684,2.17622433,212.5,212.42,7.65]
[1758723498975,4.23,212.53,212.44,7.65]
[1758723498976,2.17622433,212.52,212.44,7.65]
[1758723500183,4.23,212.53,212.44,11.8846]
[1758723500379,2.17622433,212.54,212.46,7.65]
[1758723501276,4.23,212.58,212.46,7.65]
[1758723501478,2.17622433,212.54,212.46,7.65]
[1758723501677,2.17622433,212.52,212.46,7.65]
[1758723502376,4.23,212.55,212.46,7.65]
[1758723502377,2.17622433,212.54,212.46,7.65]
[1758723502577,2.17622433,212.54,212.46,9.82622433]
[1758723503781,4.23,212.59,212.46,9.82622433]
[1758723503782,2.17622433,212.56,212.48,9.95622433]
[1758723503978,2.17622433,212.58,212.48,9.95622433]
[1758723504984,2.17622433,212.56,212.48,9.95622433]
[1758723506685,2.17622433,212.58,212.48,9.95622433]
[1758723507182,2.17622433,212.58,212.49,4.2336]
[1758723507383,2.17622433,212.6,212.51,7.78]
[1758723507584,2.17622433,212.6,212.53,7.78]
[1758723509686,4.25,212.59,212.5,2.17622433]
[1758723509892,4.25,212.59,212.51,7.78]
[1758723510086,2.17622433,212.6,212.52,2.17622433]
[1758723510286,2.17622433,212.62,212.53,7.78]
[1758723510585,7.65863733,212.64,212.53,7.78]
[1758723510784,4.25,212.68,212.53,37.14]
[1758723510980,4.25,212.68,212.54,7.78]
[1758723511186,4.25,212.68,212.56,7.78]
[1758723511787,4.25,212.68,212.57,7.78]
[1758723511788,4.2305,212.65,212.57,7.78]
[1758723513292,4.25,212.65,212.57,7.78]
[1758723514193,4.2314,212.61,212.53,29.36]
[1758723514489,4.2314,212.61,212.54,7.78]
[1758723514690,4.25,212.63,212.54,7.78]
[1758723515589,4.25,212.57,212.49,7.78]
[1758723516484,4.233,212.53,212.46,12.46]
[1758723516690,4.25,212.57,212.47,7.78]
[1758723516893,7.65863733,212.57,212.47,7.78]
[1758723517189,4.25,212.57,212.48,7.78]
[1758723517991,4.2325,212.55,212.48,7.78]
[1758723518193,4.25,212.57,212.48,7.78]
[1758723519389,3.40863733,212.6,212.48,7.78]
[1758723519588,4.25,212.61,212.49,7.78]
[1758723520485,4.25,212.61,212.5,7.78]
[1758723520887,4.2319,212.59,212.5,7.78]
[1758723521294,4.2319,212.59,212.52,7.78]
[1758723523190,4.2313,212.61,212.53,7.78]
[1758723523995,65.8137,212.64,212.53,7.78]
[1758723524898,4.25,212.65,212.53,7.78]
[1758723525095,3.40863733,212.68,212.54,35.74]
[1758723525402,470.56786219,212.69,212.57,7.78]
[1758723525403,4.2305,212.66,212.57,7.78]
[1758723525793,128.24786219,212.69,212.57,7.78]
[1758723526093,4.25,212.66,212.57,7.78]
[1758723526299,70.0629,212.64,212.52,7.78]
[1758723526500,4.2316,212.6,212.52,7.78]
[1758723526695,4.25,212.64,212.52,7.78]
[1758723526888,70.0625,212.64,212.52,7.78]
[1758723527092,65.8161,212.63,212.52,7.78]
[1758723527294,70.0625,212.64,212.52,7.78]
[1758723527999,65.8163,212.63,212.52,7.78]
[1758723528700,4.25,212.64,212.52,7.78]
[1758723529099,4.25,212.64,212.54,7.78]
[1758723530006,4.2316,212.6,212.54,7.78]
[1758723530399,4.25,212.61,212.51,3.40863733]
[1758723530702,4.2322,212.57,212.5,51.46]
[1758723531695,4.25,212.61,212.5,51.46]
[1758723531894,65.8244,212.6,212.5,51.46]
[1758723532099,65.8183,212.62,212.5,51.46]
[1758723532100,4.2329,212.54,212.5,51.46]
[1758723532299,4.2329,212.54,212.45,115.72]
[1758723532503,4.2329,212.54,212.46,7.78]
[1758723534115,4.2323,212.57,212.48,7.91]
[1758723534717,4.2318,212.59,212.49,4.2337]
[1758723535018,70.0807,212.58,212.47,3.40863733]
[1758723535209,70.0807,212.58,212.45,127.5098517]
[1758723535615,4.25,212.58,212.47,7.91]
[1758723536011,4.25,212.58,212.47,11.7898517]
[1758723536218,4.25,212.58,212.48,7.91]
[1758723537621,4.2324,212.56,212.48,7.91]
[1758723538116,4.2324,212.56,212.48,11.7898517]
[1758723538519,4.2327,212.55,212.48,12.1437]
[1758723539208,4.2327,212.55,212.48,7.91]
[1758723539416,4.25,212.56,212.48,7.91]
[1758723540222,4.2331,212.52,212.48,7.91]
[1758723540722,4.25,212.52,212.45,115.72]
[1758723542216,7.65863733,212.56,212.46,7.82]
[1758723542419,3.40863733,212.59,212.47,7.82]
[1758723542621,4.2318,212.59,212.51,7.82]
[1758723543221,4.2318,212.59,212.53,7.82]
[1758723543519,3.40863733,212.63,212.53,7.82]
[1758723543725,3.40863733,212.63,212.53,12.0527]
[1758723544425,7.65863733,212.68,212.57,7.82]
[1758723545032,4.2301,212.67,212.55,73.12688903]
[1758723545325,4.25,212.68,212.57,11.6998517]
[1758723545532,4.25,212.66,212.57,7.82]
[1758723545830,4.25,212.64,212.54,75.0]
[1758723546722,123.99786219,212.69,212.55,7.82]
[1758723546723,245.28786219,212.69,212.55,7.82]
[1758723546919,4.25,212.64,212.55,7.82]
[1758723547120,4.2317,212.59,212.55,7.82]
[1758723547326,4.25,212.58,212.54,75.0]
[1758723547627,65.816,212.63,212.51,7.82]
[1758723547628,70.0742,212.6,212.51,7.82]
[1758723548028,4.2319,212.58,212.51,7.82]
[1758723548228,4.25,212.6,212.51,7.82]
[1758723548826,4.2318,212.59,212.51,7.82]
[1758723549831,4.2318,212.59,212.51,4.2331]
[1758723550131,4.25,212.64,212.52,7.82]
[1758723550527,4.2311,212.63,212.52,7.82]
[1758723551025,4.2311,212.63,212.53,3.93632622]
[1758723551226,4.2311,212.63,212.54,7.82]
[1758723551431,4.2313,212.62,212.54,7.82]
[1758723551731,4.2313,212.62,212.55,7.82]
[1758723553131,4.2315,212.61,212.55,7.82]
[1758723553624,4.25,212.64,212.55,7.82]
[1758723553822,4.2311,212.63,212.55,7.82]
[1758723554430,70.0498,212.68,212.56,7.82]
[1758723554629,4.25,212.67,212.56,7.82]
[1758723555726,4.25,212.65,212.56,7.82]
[1758723555928,4.25,212.62,212.52,7.82]
[1758723556231,4.2322,212.57,212.51,7.82]
[1758723556530,4.25,212.59,212.51,7.82]
[1758723557033,4.2325,212.55,212.51,7.82]
[1758723557533,65.8316,212.58,212.49,42.2]
[1758723557733,4.25,212.59,212.49,42.2]
[1758723558228,65.8247,212.6,212.5,7.82]
[1758723558229,4.25,212.56,212.5,7.82]
[1758723558829,4.2325,212.55,212.5,7.82]
[1758723559028,4.25,212.59,212.49,50.02]
[1758723559233,65.8316,212.58,212.49,50.02]
[1758723559429,65.8338,212.57,212.49,50.02]
[1758723559628,65.8401,212.55,212.49,50.02]
[1758723559829,65.8401,212.55,212.46,3.93632622]
[1758723560030,4.25,212.53,212.46,3.93632622]
[1758723560230,4.25,212.53,212.45,7.82]
[1758723560533,4.2332,212.52,212.45,7.82]
[1758723560733,4.25,212.53,212.45,7.82]
[1758723561938,4.2331,212.53,212.45,7.82]
[1758723563036,4.2324,212.56,212.47,7.82]
[1758723563432,4.2324,212.56,212.47,11.75632622]
[1758723563635,4.2324,212.56,212.5,7.81]
[1758723564438,4.2326,212.55,212.48,7.81]
[1758723565541,4.2329,212.54,212.48,7.81]
[1758723567336,4.25,212.58,212.48,7.81]
[1758723567643,4.25,212.62,212.48,7.81]
[1758723568343,4.2319,212.58,212.49,4.2335]
[1758723568641,4.2319,212.58,212.5,7.81]
[1758723569040,4.2316,212.6,212.51,4.2333]
[1758723569436,4.2316,212.6,212.5,7.81]
[1758723569741,4.2316,212.6,212.51,7.81]
[1758723570334,4.25,212.62,212.5,3.93632622]
[1758723570335,8.4812,212.62,212.5,3.93632622]
[1758723570536,4.25,212.62,212.51,11.74632622]
[1758723571143,4.2316,212.6,212.51,11.74632622]
[1758723571440,4.25,212.62,212.51,11.74632622]
[1758723571739,4.25,212.62,212.52,7.81]
[1758723572044,4.25,212.62,212.51,3.93632622]
[1758723572045,4.231,212.63,212.55,4.2323]
[1758723572539,4.25,212.66,212.54,11.74632622]
[1758723572838,125.69183429,212.68,212.54,11.74632622]
[1758723572839,4.25,212.7,212.57,11.74632622]
[1758723573042,4.25,212.7,212.59,11.74632622]
[1758723573245,4.25,212.7,212.6,7.81]
[1758723573743,8.4797,212.7,212.6,12.0415]
[1758723574041,8.4797,212.7,212.6,7.81]
[1758723574241,4.25,212.7,212.63,7.81]
[1758723575043,8.4797,212.7,212.63,7.81]
[1758723575743,8.4797,212.7,212.58,99.43632622]
[1758723575744,4.2291,212.73,212.64,7.81]
[1758723576542,4.2291,212.73,212.66,7.81]
[1758723576739,4.2285,212.75,212.66,7.81]
[1758723577037,4.2285,212.75,212.66,114.62]
[1758723577343,4.2285,212.75,212.67,7.81]
[1758723577538,4.2281,212.77,212.67,12.0401]
[1758723577743,65.7655,212.79,212.67,7.81]
[1758723578145,4.2285,212.76,212.67,7.81]
[1758723578751,4.2278,212.79,212.67,7.81]
[1758723578943,4.25,212.8,212.67,7.81]
[1758723579250,8.4777,212.8,212.71,7.81]
[1758723581339,5.36952243,212.85,212.73,7.81]
[1758723581340,4.2271,212.83,212.73,7.81]
[1758723581741,4.2271,212.83,212.74,4.2287]
[1758723582744,4.2271,212.83,212.75,7.81]
[1758723584441,4.2274,212.81,212.75,7.81]
[1758723585142,4.2269,212.83,212.75,7.81]
[1758723585850,4.2265,212.86,212.77,7.81]
[1758723586045,4.25,212.9,212.77,7.81]
[1758723586646,4.2259,212.88,212.78,4.2279]
[1758723586847,4.2259,212.88,212.79,7.81]
[1758723588148,5.36952243,212.92,212.79,7.81]
[1758723588149,4.2264,212.86,212.79,7.81]
[1758723588352,4.25,212.87,212.79,7.81]
[1758723588744,4.25,212.86,212.75,7.81]
[1758723590255,4.2271,212.83,212.75,7.81]
[1758723591747,4.25,212.82,212.71,7.81]
[1758723592354,4.25,212.82,212.72,7.81]
[1758723592555,4.25,212.87,212.72,7.81]
[1758723593047,4.25,212.87,212.76,7.81]
[1758723593048,4.2265,212.85,212.76,7.81]
[1758723593548,8.4762,212.87,212.76,7.81]
[1758723593754,4.25,212.87,212.78,7.29]
[1758723595254,4.2265,212.86,212.78,7.29]
[1758723595852,4.2265,212.86,212.79,4.2277]
[1758723596047,4.2265,212.86,212.78,7.29]
[1758723596251,4.2267,212.85,212.78,7.29]
[1758723596657,6.40333428,212.85,212.78,7.29]
[1758723598160,8.467,212.83,212.78,7.29]
[1758723598748,8.467,212.83,212.75,7.29]
[1758723598954,2.17663428,212.85,212.78,7.29]
[1758723599960,2.17663428,212.85,212.78,11.5178]
[1758723600262,4.2267,212.84,212.78,7.29]
[1758723600755,2.17663428,212.81,212.74,7.25]
[1758723600958,65.7508,212.84,212.74,7.25]
[1758723600959,6.41663428,212.8,212.74,7.25]
[1758723602361,2.17663428,212.82,212.73,7.25]
[1758723602553,2.17663428,212.82,212.75,7.25]
[1758723602756,6.41663428,212.84,212.75,7.25]
[1758723603162,4.2271,212.83,212.76,4.2283]
[1758723603360,4.2271,212.83,212.75,7.25]
[1758723603564,6.41663428,212.84,212.75,7.25]
[1758723604062,6.41663428,212.84,212.76,7.25]
[1758723604063,2.17663428,212.84,212.76,7.25]
[1758723604359,2.17663428,212.87,212.78,7.25]
[1758723604558,2.17663428,212.87,212.81,7.25]
[1758723605765,2.17663428,212.83,212.75,7.25]
[1758723606165,6.41663428,212.81,212.75,7.25]
[1758723606869,2.17663428,212.81,212.75,7.25]
[1758723607862,2.17663428,212.77,212.71,7.25]
[1758723608063,6.41663428,212.78,212.71,7.25]
[1758723608968,2.17663428,212.8,212.71,7.25]
[1758723609663,2.17663428,212.78,212.71,7.25]
[1758723609855,2.17663428,212.78,212.71,11.4792]
[1758723610061,2.17663428,212.8,212.73,7.25]
[1758723610261,6.41663428,212.82,212.73,7.25]
[1758723610571,2.17663428,212.84,212.75,7.25]
[1758723610764,2.17663428,212.84,212.76,2.17663428]
[1758723610961,2.17663428,212.84,212.77,7.25]
[1758723611161,2.17663428,212.86,212.78,4.2278]
[1758723611365,6.40283428,212.87,212.79,7.25]
[1758723611965,6.41663428,212.88,212.79,13.65423428]
[1758723612467,2.17663428,212.89,212.8,7.25]
[1758723612666,131.9775363,212.92,212.8,116.9]
[1758723612969,131.9775363,212.92,212.81,7.25]
[1758723612970,4.2252,212.92,212.81,7.25]
[1758723613966,4.24,212.97,212.85,11.4764]
[1758723613967,4.2248,212.94,212.85,11.4764]
[1758723615970,4.2248,212.94,212.86,4.2261]
[1758723616164,4.2248,212.94,212.87,7.25]
[1758723616365,8.4643,212.97,212.87,7.25]
[1758723616570,8.4643,212.97,212.89,4.2257]
[1758723616864,8.4643,212.97,212.87,7.25]
[1758723616865,4.2245,212.96,212.87,7.25]
[1758723617062,4.24,212.97,212.87,7.25]
[1758723618057,69.951,212.97,212.87,7.25]
[1758723618464,4.24,212.94,212.84,54.9]
[1758723618658,4.2256,212.9,212.84,54.9]
[1758723620067,4.24,212.94,212.83,7.25]
[1758723620068,4.2259,212.89,212.83,7.25]
[1758723620669,4.2261,212.88,212.83,7.25]
[1758723620863,69.9714,212.9,212.78,7.25]
[1758723621065,4.24,212.87,212.78,124.03]
[1758723621279,4.2272,212.82,212.79,7.25]
[1758723621664,4.2267,212.85,212.79,7.25]
[1758723621968,4.24,212.87,212.79,7.25]
[1758723622368,4.24,212.87,212.76,458.92]
[1758723622572,4.24,212.87,212.77,7.25]
[1758723622877,4.2267,212.85,212.77,7.25]
[1758723623174,5.35675093,212.92,212.77,7.25]
[1758723623175,4.24,212.92,212.78,3.88764709]
[1758723623376,4.24,212.92,212.79,11.13764709]
[1758723623578,4.24,212.92,212.8,7.25]
[1758723623767,4.24,212.92,212.8,7.49]
[1758723623963,65.717,212.95,212.8,7.49]
[1758723624168,4.2252,212.92,212.82,4.227]
[1758723624380,71.07055093,212.96,212.84,7.49]
[1758723624381,4.24,212.93,212.84,7.49]
[1758723625279,4.2254,212.91,212.84,7.49]
[1758723625872,4.2254,212.91,212.83,116.86]
[1758723625873,65.735,212.89,212.79,3.88764709]
[1758723626179,4.24,212.88,212.75,4.62471066]
[1758723626471,4.24,212.88,212.74,28.88]
[1758723626472,4.24,212.85,212.74,36.37]
[1758723626672,69.99,212.84,212.74,36.37]
[1758723626873,69.99,212.84,212.74,7.49]
[1758723627078,4.2277,212.8,212.74,7.49]
[1758723627273,69.99,212.84,212.74,7.49]
[1758723627473,65.7532,212.83,212.74,7.49]
[1758723627782,4.24,212.8,212.69,11.37764709]
[1758723627980,4.24,212.8,212.7,117.16]
[1758723628175,4.24,212.8,212.71,4.2293]
[1758723628677,4.24,212.8,212.7,117.16]
[1758723628879,4.2281,212.78,212.7,117.16]
[1758723630084,4.2283,212.76,212.7,117.16]
[1758723630880,4.2283,212.76,212.69,7.49]
[1758723631279,4.228,212.78,212.69,7.49]
[1758723631476,4.24,212.8,212.7,4.2294]
[1758723631878,4.2279,212.79,212.7,4.2294]
[1758723632075,4.2279,212.79,212.71,4.2292]
[1758723632279,4.24,212.8,212.69,7.49]
[1758723633082,8.4677,212.8,212.72,4.2289]
[1758723633674,4.24,212.8,212.72,11.7189]
[1758723634185,8.4677,212.8,212.72,11.7189]
[1758723634683,8.4677,212.8,212.72,7.49]
[1758723634887,4.24,212.8,212.69,4.2295]
[1758723635279,65.7658,212.79,212.68,7.49]
[1758723635486,4.24,212.78,212.68,7.49]
[1758723635782,4.2289,212.74,212.67,90.96]
[1758723635985,4.24,212.75,212.67,90.96]
[1758723636383,8.4687,212.75,212.67,90.96]
[1758723636584,4.24,212.75,212.67,90.96]
[1758723637089,4.24,212.75,212.67,98.45]
[1758723637288,4.24,212.81,212.68,7.49]
[1758723637778,4.24,212.81,212.72,11.719]
[1758723639192,4.2277,212.8,212.72,11.719]
[1758723639391,4.2277,212.8,212.72,7.49]
[1758723639685,4.24,212.81,212.72,7.49]
[1758723639887,4.24,212.86,212.72,7.49]
[1758723640093,4.24,212.86,212.76,4.2281]
[1758723640291,4.24,212.86,212.76,11.7181]
[1758723640698,4.2263,212.86,212.79,7.49]
[1758723641085,4.24,212.9,212.79,7.49]
[1758723641282,4.2261,212.88,212.8,4.2274]
[1758723642394,4.2261,212.88,212.82,7.49]
[1758723642994,4.2256,212.9,212.82,7.49]
[1758723643196,407.8031,212.93,212.82,7.49]
[1758723643400,4.2259,212.89,212.82,7.49]
[1758723644994,65.7231,212.93,212.82,7.49]
[1758723645194,4.2264,212.86,212.76,7.49]
[1758723645399,65.744,212.86,212.76,7.49]
[1758723645599,4.2275,212.81,212.76,7.49]
[1758723645794,4.2275,212.81,212.74,57.37]
[1758723646702,65.7357,212.89,212.75,7.49]
[1758723646892,4.24,212.88,212.75,7.49]
[1758723647299,4.2271,212.83,212.76,4.2282]
[1758723648302,4.2266,212.85,212.76,4.2282]
[1758723648505,65.7422,212.87,212.75,7.49]
[1758723648803,65.747,212.85,212.75,7.49]
[1758723649102,4.2277,212.8,212.75,7.49]
[1758723649304,4.2277,212.8,212.76,7.49]
[1758723649607,4.2277,212.8,212.72,102.22]
[1758723649608,4.24,212.84,212.74,7.49]
[1758723651601,4.2269,212.84,212.76,4.2283]
[1758723651799,69.9782,212.88,212.77,7.49]
[1758723652209,4.2269,212.84,212.77,7.49]
[1758723652398,65.7439,212.86,212.77,7.49]
[1758723652596,65.75,212.84,212.73,7.49]
[1758723652800,65.75,212.84,212.69,8.61691725]
[1758723652801,65.76,212.81,212.69,3.88764709]
[1758723653003,65.7659,212.79,212.67,7.49]
[1758723653207,4.2291,212.73,212.67,124.81]
[1758723653402,65.7725,212.77,212.67,124.81]
[1758723653703,4.25,212.74,212.67,117.32]
[1758723654401,4.2297,212.7,212.67,117.32]
[1758723656907,4.25,212.74,212.67,117.32]
[1758723656908,4.2299,212.69,212.67,117.32]
[1758723657306,4.25,212.69,212.67,117.32]
[1758723657612,4.25,212.69,212.62,7.84]
[1758723658006,4.2297,212.7,212.62,12.0711]
[1758723660314,4.2291,212.72,212.62,12.0711]
[1758723660515,4.2291,212.72,212.63,4.2308]
[1758723661013,4.2295,212.7,212.62,7.84]
[1758723661213,4.25,212.73,212.62,7.84]
[1758723661609,8.479,212.73,212.62,7.84]
[1758723661804,4.25,212.73,212.62,7.84]
[1758723662212,8.61691725,212.8,212.62,7.84]
[1758723662512,4.24,212.77,212.62,7.84]
[1758723663011,4.24,212.77,212.66,4.2301]
[1758723663012,4.2289,212.74,212.66,4.2301]
[1758723663228,4.2289,212.74,212.65,7.87]
[1758723664313,4.2289,212.74,212.65,12.1003]
[1758723665414,4.2291,212.72,212.65,7.87]
[1758723666122,65.772,212.77,212.62,4.2309]
[1758723666123,4.24,212.73,212.62,121.3909]
[1758723666415,4.24,212.73,212.62,117.16]
[1758723667315,4.2298,212.69,212.62,117.16]
[1758723667821,4.2293,212.72,212.62,121.3909]
[1758723668017,4.24,212.73,212.63,7.87]
[1758723668818,4.2293,212.72,212.63,7.87]
[1758723669216,4.24,212.73,212.63,7.87]
[1758723669519,65.7902,212.71,212.63,7.87]
[1758723669721,4.24,212.67,212.58,69.81]
[1758723671926,4.24,212.63,212.58,61.94]
[1758723672223,70.0432,212.67,212.59,7.87]
[1758723672928,4.24,212.63,212.55,7.87]
[1758723675123,4.24,212.68,212.55,7.87]
[1758723675323,4.2302,212.67,212.55,7.87]
[1758723675724,4.24,212.72,212.57,7.87]
[1758723675923,65.7904,212.71,212.57,7.87]
[1758723676129,4.24,212.69,212.57,7.87]
[1758723676429,70.0369,212.69,212.57,7.87]
[1758723676729,4.24,212.69,212.59,7.87]
[1758723677426,4.2306,212.65,212.59,7.87]
[1758723677622,4.24,212.69,212.59,7.87]
[1758723677623,70.0381,212.69,212.59,7.87]
[1758723678220,4.2303,212.66,212.59,7.87]
[1758723678725,4.2297,212.7,212.59,7.87]
[1758723678936,4.24,212.73,212.59,7.87]
[1758723679629,4.2301,212.68,212.59,7.87]
[1758723679825,4.24,212.7,212.59,7.87]
[1758723680033,4.24,212.7,212.59,12.1016]
[1758723680034,4.2307,212.65,212.59,12.1016]
[1758723680428,4.2307,212.65,212.59,7.87]
[1758723680627,4.23,212.68,212.59,7.87]
[1758723680829,4.24,212.7,212.59,7.87]
[1758723682034,4.24,212.7,212.61,4.2312]
[1758723682231,4.24,212.7,212.62,7.87]
[1758723682431,4.2298,212.69,212.62,7.87]
[1758723682932,4.2298,212.69,212.62,12.101]
[1758723684130,4.2298,212.69,212.62,7.87]
[1758723684734,4.24,212.76,212.61,7.36]
[1758723684927,70.015,212.76,212.61,7.36]
[1758723685932,65.7783,212.75,212.64,7.36]
[1758723686132,4.24,212.74,212.64,7.36]
[1758723687235,4.2296,212.7,212.64,7.36]
[1758723687432,4.24,212.74,212.64,7.36]
[1758723687843,4.2299,212.69,212.62,7.36]
[1758723688331,4.24,212.74,212.62,7.36]
[1758723688332,4.2292,212.72,212.62,7.36]
[1758723688841,4.2292,212.72,212.66,7.36]
[1758723689730,65.784,212.73,212.64,7.36]
[1758723689930,4.24,212.72,212.64,7.36]
[1758723690531,4.2296,212.7,212.64,7.36]
[1758723690741,4.24,212.72,212.64,7.36]
[1758723690943,70.0157,212.76,212.64,7.36]
[1758723691940,4.229,212.73,212.66,4.2303]
[1758723692441,4.24,212.76,212.64,7.36]
[1758723692939,4.24,212.76,212.66,4.2302]
[1758723693841,4.2293,212.72,212.64,7.36]
[1758723694335,4.24,212.73,212.64,7.36]
[1758723695041,4.2294,212.71,212.65,4.2304]
[1758723696042,4.2296,212.7,212.64,7.36]
[1758723696341,4.24,212.73,212.64,7.36]
[1758723696542,4.24,212.73,212.65,2.17878952]
[1758723696839,4.2291,212.73,212.67,11.59]
[1758723697444,4.2291,212.73,212.67,7.36]
[1758723697936,4.24,212.74,212.66,7.36]
[1758723698130,2.17878952,212.73,212.66,7.36]
[1758723698335,4.2295,212.71,212.65,9.53878952]
[1758723698535,4.24,212.74,212.65,13.76918952]
[1758723698930,4.24,212.74,212.65,9.53878952]
[1758723699139,4.24,212.69,212.6,6.10430734]
[1758723699740,4.2302,212.67,212.6,10.33570734]
[1758723700039,4.2302,212.67,212.6,2.17878952]
[1758723700436,2.17878952,212.68,212.59,11.28551782]
[1758723700642,6.41878952,212.68,212.59,11.28551782]
[1758723700842,6.41878952,212.68,212.59,7.36]
[1758723701044,2.17878952,212.66,212.59,7.36]
[1758723701643,2.17878952,212.66,212.57,2.17878952]
[1758723701644,2.17878952,212.64,212.57,3.92551782]
[1758723701846,2.17878952,212.64,212.55,9.53878952]
[1758723701847,6.41878952,212.64,212.56,3.92551782]
[1758723702037,6.41878952,212.64,212.55,11.28551782]
[1758723702541,6.41878952,212.64,212.55,7.36]
[1758723702542,2.17878952,212.62,212.55,7.36]
[1758723703535,4.24,212.61,212.55,7.36]
[1758723703736,4.24,212.61,212.53,7.36]
[1758723703941,2.17878952,212.62,212.53,7.36]
[1758723704247,4.2313,212.61,212.53,7.36]
[1758723704440,6.41878952,212.62,212.53,7.36]
[1758723704641,2.17878952,212.6,212.53,7.36]
[1758723705142,4.24,212.59,212.52,342.18]
[1758723705344,2.17878952,212.56,212.5,116.94]
[1758723705647,4.24,212.53,212.5,116.94]